fUST/lending_fUST_20250720
["ID","MTS","AMOUNT","RATE_DAILY","PERIOD"]
[373359214,1752966671767,-200.15644214,0.00023,2]
[373359215,1752966671777,-151.0,0.00023,7]
[373359216,1752966671786,-151.0,0.00023,7]
[373359217,1752966671795,-160.0,0.00023,3]
[373359218,1752966671805,-151.0,0.00023,7]
[373359219,1752966671814,-151.0,0.00023,7]
[373359220,1752966671823,-1000.0,0.00023,5]
[373359221,1752966671833,-512.433133,0.00023,7]
[373359222,1752966671843,-512.433133,0.00023,7]
[373359223,1752966671856,-160.0,0.00023,3]
[373359224,1752966671868,-525.83049785,0.00023,3]
[373359225,1752966671878,-160.0,0.00023,3]
[373359226,1752966671888,-839.454303,0.00023,3]
[373359227,1752966671898,-160.0,0.00023,3]
[373359228,1752966671908,-230.94145789,0.00023,3]
[373359229,1752966671918,-215.67360783,0.00023,3]
[373359230,1752966671927,-160.0,0.00023,3]
[373359231,1752966671937,-160.0,0.00023,3]
[373359232,1752966671946,-350.0,0.00023014,2]
[373359233,1752966671956,-450.0,0.00023014,2]
[373359234,1752966671966,-161.0,0.00023014,7]
[373359235,1752966671975,-5697.5354751,0.00023038,8]
[373359236,1752966671985,-178.0,0.00023085,2]
[373359237,1752966671994,-530.45,0.00023087,3]
[373359238,1752966672004,-1453.96,0.00023091,2]
[373359239,1752966672013,-914.5,0.00023091,2]
[373359240,1752966672022,-479.16,0.00023091,2]
[373359241,1752966672032,-2820.31,0.00023091,2]
[373359242,1752966672041,-484.79,0.00023091,2]
[373359243,1752966672050,-629.72,0.00023091,2]
[373359244,1752966672059,-603.47,0.00023091,2]
[373359245,1752966672069,-4983.9,0.00023091,2]
[373359246,1752966672078,-559.77,0.00023091,2]
[373359247,1752966672088,-460.0,0.00023092,2]
[373359248,1752966672097,-460.0,0.00023092,2]
[373359249,1752966672107,-520.46,0.00023092,2]
[373359250,1752966672117,-623.64,0.00023092,2]
[373359251,1752966672126,-607.55,0.00023092,2]
[373359252,1752966672135,-498.33,0.00023092,2]
[373359253,1752966672145,-675.57,0.00023092,2]
[373359254,1752966672154,-464.35,0.00023092,2]
[373359255,1752966672164,-719.7,0.00023092,2]
[373359256,1752966672174,-696.69,0.00023092,2]
[373359257,1752966672184,-895.61,0.00023092,2]
[373359258,1752966672194,-1241.46,0.00023092,2]
[373359259,1752966672204,-2718.71,0.00023092,2]
[373359260,1752966672214,-524.76,0.00023092,2]
[373359261,1752966672224,-1798.49,0.00023092,2]
[373359262,1752966672234,-498.33,0.00023092,2]
[373359263,1752966672244,-573.13,0.00023092,2]
[373359264,1752966672254,-761.17,0.00023092,2]
[373359265,1752966672263,-1022.89,0.00023092,2]
[373359266,1752966672272,-498.33,0.00023092,2]
[373359267,1752966672283,-662.4,0.00023092,2]
[373359268,1752966672292,-486.75613743,0.00023092,2]
[373359269,1752966672302,-753.09,0.00023092,2]
[373359270,1752966672311,-601.49,0.00023093,2]
[373359271,1752966672325,-517.5,0.00023093,2]
[373359272,1752966672334,-242.97741326,0.00023093,2]
[373359273,1752966672343,-705.1,0.00023093,2]
[373359274,1752966672444,-460.0,0.00023093,2]
[373359275,1752966672454,-1128.75,0.00023093,2]
[373359276,1752966672463,-616.03,0.00023093,2]
[373359277,1752966672473,-158.45459108,0.00023093,2]
[373359278,1752966672482,-479.5,0.00023093,2]
[373359279,1752966672492,-460.0,0.00023093,2]
[373359280,1752966672502,-482.38,0.00023094,2]
[373359281,1752966672512,-5129.89,0.00023094,2]
[373359282,1752966672522,-782.61,0.00023094,2]
[373359283,1752966672532,-1414.05,0.00023094,2]
[373359284,1752966672541,-316.0,0.00023095,2]
[373359285,1752966672550,-851.29,0.00023095,2]
[373359286,1752966672559,-178.0,0.00023099,2]
[373359287,1752966672568,-1671.32,0.000231,7]
[373359288,1752966672580,-5557.1,0.000231,7]
[373359289,1752966672590,-823.0,0.0002312,2]
[373359290,1752966672599,-206.0,0.0002317,2]
[373359291,1752966672609,-1196.08,0.00023175,2]
[373359292,1752966672619,-517.58,0.00023175,2]
[373359293,1752966672630,-316.0,0.00023194,2]
[373359294,1752966672639,-152.474155,0.00023197,5]
[373359295,1752966672648,-331.67158935,0.00023197,2]
[373359296,1752966672661,-455.0,0.00023197,2]
[373359297,1752966672672,-600.0,0.00023225,2]
[373359298,1752966672682,-151.0,0.00023233,7]
[373359299,1752966672693,-5697.5354751,0.00023245,8]
[373359300,1752966672702,-358.62583903,0.00023245,2]
[373359301,1752966672713,-178.0,0.00023248,2]
[373359302,1752966672724,-520.73,0.00023268,2]
[373359303,1752966672734,-498.33,0.00023268,2]
[373359304,1752966672745,-479.16,0.00023268,2]
[373359305,1752966672754,-1753.36,0.00023268,2]
[373359306,1752966672763,-151.13707733,0.00023288,2]
[373359307,1752966672773,-152.474155,0.000233,8]
[373359308,1752966672782,-7820.94930591,0.00023329,2]
[373359309,1752966672792,-1453.96,0.00023365,2]
[373359310,1752966672801,-914.5,0.00023365,2]
[373359311,1752966672810,-479.16,0.00023365,2]
[373359312,1752966672819,-2820.31,0.00023365,2]
[373359313,1752966672828,-484.79,0.00023365,2]
[373359314,1752966672837,-629.72,0.00023365,2]
[373359315,1752966672847,-603.47,0.00023365,2]
[373359316,1752966672856,-4983.9,0.00023365,2]
[373359317,1752966672866,-559.77,0.00023365,2]
[373359318,1752966672875,-460.0,0.00023366,2]
[373359319,1752966672885,-460.0,0.00023366,2]
[373359320,1752966672894,-520.46,0.00023366,2]
[373359321,1752966672904,-623.64,0.00023366,2]
[373359322,1752966672913,-607.55,0.00023366,2]
[373359323,1752966672923,-498.33,0.00023366,2]
[373359324,1752966672932,-675.57,0.00023366,2]
[373359325,1752966672941,-464.35,0.00023366,2]
[373359326,1752966672950,-719.7,0.00023366,2]
[373359327,1752966672960,-696.69,0.00023366,2]
[373359328,1752966672969,-895.61,0.00023366,2]
[373359329,1752966672979,-1241.46,0.00023366,2]
[373359330,1752966672988,-2718.71,0.00023366,2]
[373359331,1752966672998,-524.76,0.00023366,2]
[373359332,1752966673007,-1798.49,0.00023366,2]
[373359333,1752966673016,-498.33,0.00023366,2]
[373359334,1752966673026,-573.13,0.00023366,2]
[373359335,1752966673035,-761.17,0.00023366,2]
[373359336,1752966673044,-1022.89,0.00023366,2]
[373359337,1752966673053,-498.33,0.00023366,2]
[373359338,1752966673063,-662.4,0.00023366,2]
[373359339,1752966673073,-753.09,0.00023366,2]
[373359340,1752966673082,-601.49,0.00023367,2]
[373359341,1752966673091,-517.5,0.00023367,2]
[373359342,1752966673102,-705.1,0.00023367,2]
[373359343,1752966673111,-460.0,0.00023367,2]
[373359344,1752966673121,-1128.75,0.00023367,2]
[373359345,1752966673130,-616.03,0.00023367,2]
[373359346,1752966673140,-479.5,0.00023367,2]
[373359347,1752966673149,-538.04655802,0.00023367,2]
[373359348,1752966673159,-482.38,0.00023368,2]
[373359349,1752966673168,-5129.89,0.00023368,2]
[373359350,1752966673177,-782.61,0.00023368,2]
[373359351,1752966673186,-1414.05,0.00023368,2]
[373359352,1752966673196,-851.29,0.00023369,2]
[373359353,1752966673205,-152.474155,0.00023384,14]
[373359354,1752966673215,-500.81129186,0.000234,2]
[373359355,1752966673224,-177.36261879,0.000234,2]
[373359356,1752966673233,-178.0,0.00023412,2]
[373359357,1752966673243,-2200.0,0.00023439,2]
[373359358,1752966673252,-178.0,0.00023442,2]
[373359359,1752966673262,-152.474155,0.00023443,7]
[373359360,1752966673272,-1196.08,0.00023449,2]
[373359361,1752966673282,-517.58,0.00023449,2]
[373359362,1752966673292,-5697.5354751,0.00023452,9]
[373359363,1752966673301,-500.0,0.00023456,2]
[373359364,1752966673311,-151.0,0.00023467,7]
[373359365,1752966673321,-1190.41673977,0.00023467,2]
[373359366,1752966673330,-152.474155,0.00023468,8]
[373359367,1752966673340,-455.0,0.00023471,2]
[373359368,1752966673350,-500.0,0.00023473,2]
[373359369,1752966673359,-150.0,0.00023473,2]
[373359370,1752966673369,-1881.61,0.00023481,3]
[373359371,1752966673379,-332755.06827598,0.0002349,7]
[373359372,1752966673462,-2221.69833857,0.0002349,7]
[373359373,1752966673683,-460.0,0.00017886,2]
[373359374,1752966673693,-584.38,0.0001816,2]
[373359375,1752966673702,-460.0,0.0001816,2]
[373359376,1752966673711,-584.38,0.00018434,2]
[373359377,1752966673721,-460.0,0.00018434,2]
[373359378,1752966673730,-584.38,0.00018708,2]
[373359379,1752966673739,-462.76349482,0.00018708,2]
[373359380,1752966673749,-584.38,0.00018982,2]
[373359381,1752966673759,-460.0,0.00018983,2]
[373359382,1752966673768,-460.0,0.00019256,2]
[373359383,1752966673777,-584.38,0.00019256,2]
[373359384,1752966673786,-350.09,0.00019257,2]
[373359385,1752966673796,-584.38,0.0001953,2]
[373359386,1752966673805,-584.38,0.00019804,2]
[373359387,1752966673815,-13727.57818671,0.0002349,7]
[373359388,1752966673826,-361.43349,0.0002349,7]
[373359389,1752966673837,-398.076,0.0002349,7]
[373359390,1752966673849,-70892.37531415,0.0002349,7]
[373359391,1752966673975,-460.0,0.00017886,2]
[373359392,1752966673984,-460.0,0.00017886,2]
[373359393,1752966673994,-460.0,0.0001816,2]
[373359394,1752966674003,-460.0,0.0001816,2]
[373359395,1752966674012,-460.0,0.00018434,2]
[373359396,1752966674022,-2652.03108259,0.00019746,2]
[373359397,1752966674031,-584.38,0.00020078,2]
[373359398,1752966674041,-584.38,0.00020352,2]
[373359399,1752966674050,-584.38,0.00020626,2]
[373359400,1752966674059,-584.38,0.000209,2]
[373359401,1752966674068,-584.38,0.00021174,2]
[373359402,1752966674077,-584.38,0.00021448,2]
[373359403,1752966674086,-584.38,0.00021722,2]
[373359404,1752966674096,-584.38,0.00021996,2]
[373359405,1752966674106,-584.38,0.0002227,2]
[373359406,1752966674116,-584.38,0.00022544,2]
[373359407,1752966674126,-1000.0,0.00023,2]
[373359408,1752966674135,-80913.16950166,0.0002349,7]
[373359409,1752966674144,-151.0,0.0002349,7]
[373359410,1752966674154,-151.0,0.0002349,7]
[373359411,1752966674163,-151.0,0.0002349,7]
[373359412,1752966674173,-151.0,0.0002349,7]
[373359413,1752966674183,-151.0,0.0002349,7]
[373359414,1752966674192,-151.0,0.0002349,7]
[373359415,1752966674202,-151.0,0.0002349,7]
[373359416,1752966674212,-151.0,0.0002349,7]
[373359417,1752966674221,-151.0,0.0002349,7]
[373359418,1752966674230,-151.0,0.0002349,7]
[373359419,1752966674239,-151.0,0.0002349,7]
[373359420,1752966674249,-151.0,0.0002349,7]
[373359421,1752966674259,-151.0,0.0002349,7]
[373359422,1752966674269,-151.0,0.0002349,7]
[373359423,1752966674278,-260.129608,0.0002349,7]
[373359424,1752966674287,-260.129608,0.0002349,7]
[373359425,1752966674296,-151.0,0.0002349,7]
[373359426,1752966674305,-151.0,0.0002349,7]
[373359427,1752966674315,-205.078885,0.0002349,7]
[373359428,1752966674325,-205.078885,0.0002349,7]
[373359429,1752966674334,-151.0,0.0002349,7]
[373359430,1752966674343,-151.0,0.0002349,7]
[373359431,1752966674353,-333.671935,0.0002349,7]
[373359432,1752966674363,-333.671935,0.0002349,7]
[373359433,1752966674372,-151.0,0.0002349,7]
[373359434,1752966674381,-354.712588,0.0002349,7]
[373359435,1752966674390,-354.712588,0.0002349,7]
[373359436,1752966674399,-151.0,0.0002349,7]
[373359437,1752966674409,-214.583336,0.0002349,7]
[373359438,1752966674418,-151.0,0.0002349,7]
[373359439,1752966674428,-151.0,0.0002349,7]
[373359440,1752966674437,-151.0,0.0002349,7]
[373359441,1752966674446,-512.433133,0.0002349,7]
[373359442,1752966674455,-512.433141,0.0002349,7]
[373359443,1752966674464,-293181.41468119,0.000235,4]
[373359444,1752966674476,-4000.405752,0.000235,4]
[373359445,1752966674529,-460.0,0.00018708,2]
[373359446,1752966674538,-204.31338182,0.00022818,2]
[373359448,1752966736601,206.668536,0.00013699,2]
[373359456,1752967699557,-233.150675,0.00016811,2]
[373359457,1752967699579,-8380.849325,0.00016836,2]
[373359463,1752967719845,467.239314,0.0002,120]
[373359500,1752967832657,-1373.150675,0.00016836,2]
[373359501,1752967832667,-501.02957041,0.00017773,2]
[373359502,1752967832677,-159.51330566,0.00017773,2]
[373359503,1752967832687,-300.0,0.00017784,2]
[373359504,1752967832696,-169.0,0.00017784,2]
[373359505,1752967832706,-460.0,0.00017785,2]
[373359506,1752967832715,-460.0,0.00017785,2]
[373359507,1752967832725,-460.0,0.00017785,2]
[373359508,1752967832734,-460.0,0.00017785,2]
[373359509,1752967832744,-460.30007351,0.00017785,2]
[373359510,1752967832758,-460.0,0.00017785,2]
[373359511,1752967832767,-460.0,0.00017785,2]
[373359512,1752967832776,-460.0,0.00017785,2]
[373359513,1752967832785,-460.0,0.00017785,2]
[373359514,1752967832794,-460.0,0.00017785,2]
[373359515,1752967832803,-460.0,0.00017785,2]
[373359516,1752967832813,-460.0,0.00017785,2]
[373359517,1752967832822,-460.0,0.00017785,2]
[373359518,1752967832831,-460.0,0.00017785,2]
[373359519,1752967832844,-460.0,0.00017785,2]
[373359520,1752967832854,-460.0,0.00017785,2]
[373359521,1752967832863,-1000.0,0.00017785,2]
[373359522,1752967832873,-721.04,0.00017785,2]
[373359523,1752967832883,-460.0,0.00017785,2]
[373359524,1752967832893,-460.0,0.00017785,2]
[373359525,1752967832903,-460.53415314,0.00017785,2]
[373359526,1752967832914,-460.0,0.00017785,2]
[373359527,1752967832923,-460.0,0.00017785,2]
[373359528,1752967832934,-460.0,0.00017785,2]
[373359529,1752967832945,-460.0,0.00017785,2]
[373359530,1752967832957,-500.0,0.00017785,2]
[373359531,1752967832967,-500.0,0.00017785,2]
[373359532,1752967832977,-460.0,0.00017785,2]
[373359533,1752967832986,-460.0,0.00017786,2]
[373359534,1752967833001,-268.57026462,0.00017786,2]
[373359535,1752967833011,-460.0,0.00017786,2]
[373359536,1752967833021,-460.0,0.00017786,2]
[373359537,1752967833036,-459.84158368,0.00017786,2]
[373359538,1752967833047,-460.0,0.00017786,2]
[373359539,1752967833056,-460.0,0.00017786,2]
[373359540,1752967833066,-460.0,0.00017786,2]
[373359541,1752967833077,-460.0,0.00017786,2]
[373359542,1752967833086,-460.0,0.00017786,2]
[373359543,1752967833095,-460.0,0.00017786,2]
[373359544,1752967833104,-460.0,0.00017786,2]
[373359545,1752967833114,-460.0,0.00017786,2]
[373359546,1752967833124,-460.0,0.00017786,2]
[373359547,1752967833133,-460.0,0.00017786,2]
[373359548,1752967833142,-460.0,0.00017786,2]
[373359549,1752967833152,-460.0,0.00017786,2]
[373359550,1752967833161,-460.0,0.00017786,2]
[373359551,1752967833170,-460.0,0.00017786,2]
[373359552,1752967833180,-460.0,0.00017786,2]
[373359553,1752967833190,-460.0,0.00017786,2]
[373359554,1752967833199,-460.0,0.00017786,2]
[373359555,1752967833209,-460.0,0.00017786,2]
[373359556,1752967833218,-460.0,0.00017786,2]
[373359557,1752967833227,-460.0,0.00017786,2]
[373359558,1752967833236,-460.0,0.00017786,2]
[373359559,1752967833250,-460.0,0.00017786,2]
[373359560,1752967833259,-207.67346914,0.00017786,2]
[373359561,1752967833268,-460.0,0.00017786,2]
[373359562,1752967833278,-460.0,0.00017786,2]
[373359563,1752967833287,-460.0,0.00017786,2]
[373359564,1752967833297,-460.0,0.00017786,2]
[373359565,1752967833306,-460.0,0.00017786,2]
[373359566,1752967833316,-419.77054617,0.00017786,2]
[373359567,1752967833326,-460.0,0.00017786,2]
[373359568,1752967833336,-202.64,0.00017786,2]
[373359569,1752967833346,-460.0,0.00017786,2]
[373359570,1752967833355,-460.0,0.00017786,2]
[373359571,1752967833365,-540.0,0.00017786,2]
[373359572,1752967833374,-460.0,0.00017786,2]
[373359573,1752967833383,-460.0,0.00017786,2]
[373359574,1752967833393,-460.0,0.00017786,2]
[373359575,1752967833403,-200.06338691,0.00017786,2]
[373359576,1752967833412,-460.0,0.00017786,2]
[373359577,1752967833421,-460.0,0.00017786,2]
[373359578,1752967833432,-460.0,0.00017786,2]
[373359579,1752967833445,-460.0,0.00017786,2]
[373359580,1752967833455,-460.0,0.00017786,2]
[373359581,1752967833464,-460.0,0.00017786,2]
[373359582,1752967833473,-460.0,0.00017786,2]
[373359583,1752967833483,-460.0,0.00017786,2]
[373359584,1752967833492,-460.0,0.00017786,2]
[373359585,1752967833501,-460.0,0.00017786,2]
[373359586,1752967833510,-963.18,0.00017786,2]
[373359587,1752967833520,-460.0,0.00017786,2]
[373359588,1752967833529,-460.0,0.00017786,2]
[373359589,1752967833539,-460.0,0.00017786,2]
[373359590,1752967833548,-460.0,0.00017786,2]
[373359591,1752967833557,-460.0,0.00017786,2]
[373359592,1752967833567,-460.0,0.00017786,2]
[373359593,1752967833577,-460.0,0.00017786,2]
[373359594,1752967833586,-460.0,0.00017786,2]
[373359595,1752967833595,-460.0,0.00017786,2]
[373359596,1752967833604,-460.0,0.00017786,2]
[373359597,1752967833614,-460.0,0.00017786,2]
[373359598,1752967833624,-460.0,0.00017786,2]
[373359599,1752967833633,-460.0,0.00017786,2]
[373359600,1752967833643,-460.0,0.00017786,2]
[373359601,1752967833652,-460.0,0.00017786,2]
[373359602,1752967833662,-1079.24,0.00017786,2]
[373359603,1752967833671,-460.0,0.00017786,2]
[373359604,1752967833681,-460.0,0.00017786,2]
[373359605,1752967833691,-460.0,0.00017786,2]
[373359606,1752967833700,-460.0,0.00017786,2]
[373359607,1752967833709,-460.0,0.00017786,2]
[373359608,1752967833719,-1049.88,0.00017786,2]
[373359609,1752967833729,-460.0,0.00017786,2]
[373359610,1752967833738,-460.0,0.00017786,2]
[373359611,1752967833748,-460.0,0.00017786,2]
[373359612,1752967833757,-460.0,0.00017786,2]
[373359613,1752967833767,-460.0,0.00017786,2]
[373359614,1752967833776,-460.0,0.00017786,2]
[373359615,1752967833786,-460.0,0.00017786,2]
[373359616,1752967833796,-460.0,0.00017786,2]
[373359617,1752967833805,-460.0,0.00017786,2]
[373359618,1752967833815,-460.0,0.00017786,2]
[373359619,1752967833826,-460.0,0.00017786,2]
[373359620,1752967833836,-460.0,0.00017786,2]
[373359621,1752967833845,-460.0,0.00017786,2]
[373359622,1752967833854,-460.0,0.00017786,2]
[373359623,1752967833864,-460.0,0.00017786,2]
[373359624,1752967833874,-460.0,0.00017786,2]
[373359625,1752967833883,-460.0,0.00017786,2]
[373359626,1752967833893,-460.0,0.00017786,2]
[373359627,1752967833902,-460.0,0.00017786,2]
[373359628,1752967833912,-160.64124358,0.00017786,2]
[373359629,1752967833921,-460.0,0.00017786,2]
[373359630,1752967833931,-1792.67,0.00017786,2]
[373359631,1752967833941,-460.0,0.00017786,2]
[373359632,1752967833950,-460.0,0.00017786,2]
[373359633,1752967833959,-460.0,0.00017786,2]
[373359634,1752967833969,-460.0,0.00017786,2]
[373359635,1752967833978,-460.0,0.00017786,2]
[373359636,1752967833987,-460.0,0.00017786,2]
[373359637,1752967834000,-460.0,0.00017786,2]
[373359638,1752967834009,-541.67989777,0.00017786,2]
[373359639,1752967834018,-460.0,0.00017786,2]
[373359640,1752967834027,-460.0,0.00017786,2]
[373359641,1752967834038,-265.747,0.00017786,2]
[373359642,1752967834047,-460.0,0.00017787,2]
[373359643,1752967834058,-460.0,0.00017787,2]
[373359644,1752967834067,-460.0,0.00017787,2]
[373359645,1752967834078,-460.0,0.00017787,2]
[373359646,1752967834088,-460.0,0.00017787,2]
[373359647,1752967834098,-460.0,0.00017787,2]
[373359648,1752967834107,-460.0,0.00017787,2]
[373359649,1752967834117,-460.0,0.00017787,2]
[373359650,1752967834126,-460.0,0.00017787,2]
[373359651,1752967834135,-460.0,0.00017787,2]
[373359652,1752967834145,-460.0,0.00017787,2]
[373359653,1752967834154,-460.0,0.00017787,2]
[373359654,1752967834163,-460.0,0.00017787,2]
[373359655,1752967834173,-460.0,0.00017787,2]
[373359656,1752967834183,-460.0,0.00017787,2]
[373359657,1752967834192,-460.0,0.00017787,2]
[373359658,1752967834202,-460.0,0.00017787,2]
[373359659,1752967834211,-460.0,0.00017787,2]
[373359660,1752967834220,-460.0,0.00017787,2]
[373359661,1752967834229,-460.0,0.00017787,2]
[373359662,1752967834238,-460.0,0.00017787,2]
[373359663,1752967834247,-460.0,0.00017787,2]
[373359664,1752967834256,-460.0,0.00017787,2]
[373359665,1752967834265,-460.0,0.00017787,2]
[373359666,1752967834274,-460.0,0.00017787,2]
[373359667,1752967834283,-460.0,0.00017787,2]
[373359668,1752967834292,-460.0,0.00017787,2]
[373359669,1752967834301,-460.0,0.00017787,2]
[373359670,1752967834310,-460.0,0.00017787,2]
[373359671,1752967834319,-460.0,0.00017787,2]
[373359672,1752967834329,-460.0,0.00017787,2]
[373359673,1752967834339,-460.0,0.00017787,2]
[373359674,1752967834348,-460.0,0.00017787,2]
[373359675,1752967834358,-460.0,0.00017787,2]
[373359676,1752967834367,-460.0,0.00017787,2]
[373359677,1752967834376,-460.0,0.00017787,2]
[373359678,1752967834386,-463.9073165,0.00017787,2]
[373359679,1752967834395,-460.0,0.00017787,2]
[373359680,1752967834404,-460.0,0.00017787,2]
[373359681,1752967834414,-460.0,0.00017787,2]
[373359682,1752967834422,-460.0,0.00017787,2]
[373359683,1752967834432,-344.731679,0.00017787,2]
[373359684,1752967834441,-249.99787793,0.00017787,2]
[373359685,1752967834450,-460.0,0.00017787,2]
[373359686,1752967834459,-460.0,0.00017787,2]
[373359687,1752967834469,-460.0,0.00017787,2]
[373359688,1752967834478,-460.0,0.00017787,2]
[373359689,1752967834488,-460.0,0.00017787,2]
[373359690,1752967834497,-460.0,0.00017787,2]
[373359691,1752967834506,-460.0,0.00017787,2]
[373359692,1752967834515,-460.0,0.00017787,2]
[373359693,1752967834524,-460.0,0.00017787,2]
[373359694,1752967834534,-460.0,0.00017787,2]
[373359695,1752967834543,-460.60351202,0.00017787,2]
[373359696,1752967834551,-460.0,0.00017787,2]
[373359697,1752967834560,-460.0,0.00017787,2]
[373359698,1752967834569,-460.0,0.00017787,2]
[373359699,1752967834580,-460.0,0.00017787,2]
[373359700,1752967834589,-460.0,0.00017787,2]
[373359701,1752967834598,-460.0,0.00017787,2]
[373359702,1752967834608,-460.51848876,0.00017787,2]
[373359703,1752967834617,-460.0,0.00017787,2]
[373359704,1752967834627,-460.0,0.00017787,2]
[373359705,1752967834635,-460.0,0.00017787,2]
[373359706,1752967834645,-460.22832073,0.00017787,2]
[373359707,1752967834655,-460.0,0.00017787,2]
[373359708,1752967834664,-460.0,0.00017787,2]
[373359709,1752967834673,-460.0,0.00017787,2]
[373359710,1752967834683,-461.29778232,0.00017787,2]
[373359711,1752967834692,-460.0,0.00017787,2]
[373359712,1752967834702,-460.0,0.00017787,2]
[373359713,1752967834711,-460.0,0.00017787,2]
[373359714,1752967834720,-460.0,0.00017787,2]
[373359715,1752967834729,-460.0,0.00017787,2]
[373359716,1752967834739,-168.6871047,0.00017787,2]
[373359717,1752967834749,-460.0,0.00017787,2]
[373359718,1752967834758,-460.0,0.00017787,2]
[373359719,1752967834767,-460.0,0.00017787,2]
[373359720,1752967834777,-460.0,0.00017787,2]
[373359721,1752967834786,-460.0,0.00017787,2]
[373359722,1752967834795,-460.0,0.00017787,2]
[373359723,1752967834804,-293.33953326,0.00017787,2]
[373359724,1752967834813,-460.0,0.00017787,2]
[373359725,1752967834824,-461.3594574,0.00017787,2]
[373359726,1752967834833,-460.0,0.00017787,2]
[373359727,1752967834843,-461.1480887,0.00017787,2]
[373359728,1752967834859,-54.73513387,0.00017787,2]
[373359729,1752967834868,-461.16638355,0.00017787,2]
[373359730,1752967834878,-461.14878173,0.00017787,2]
[373359731,1752967834887,-461.00435684,0.00017787,2]
[373359732,1752967834897,-460.0,0.00017787,2]
[373359733,1752967834907,-460.0,0.00017787,2]
[373359734,1752967834918,-460.0,0.00017787,2]
[373359735,1752967834928,-460.0,0.00017787,2]
[373359736,1752967834938,-460.0,0.00017787,2]
[373359737,1752967834947,-460.0,0.00017787,2]
[373359738,1752967834957,-460.0,0.00017787,2]
[373359739,1752967834966,-460.0,0.00017787,2]
[373359740,1752967834976,-460.0,0.00017787,2]
[373359741,1752967834986,-460.0,0.00017787,2]
[373359742,1752967834997,-460.0,0.00017787,2]
[373359743,1752967835007,-298.13361043,0.00017787,2]
[373359744,1752967835017,-460.0,0.00017787,2]
[373359745,1752967835026,-460.0,0.00017787,2]
[373359746,1752967835035,-460.0,0.00017787,2]
[373359747,1752967835046,-460.0,0.00017787,2]
[373359748,1752967835055,-460.0,0.00017787,2]
[373359749,1752967835065,-460.0,0.00017787,2]
[373359750,1752967835075,-180.01716256,0.00017787,2]
[373359751,1752967835085,-460.0,0.00017787,2]
[373359752,1752967835095,-460.0,0.00017787,2]
[373359753,1752967835104,-460.0,0.00017787,2]
[373359754,1752967835113,-460.0,0.00017787,2]
[373359755,1752967835131,-460.0,0.00017787,2]
[373359756,1752967835142,-460.0,0.00017787,2]
[373359757,1752967835151,-460.0,0.00017787,2]
[373359758,1752967835161,-683.81,0.00017787,2]
[373359759,1752967835170,-460.0,0.00017787,2]
[373359760,1752967835179,-460.0,0.00017787,2]
[373359761,1752967835188,-460.0,0.00017787,2]
[373359762,1752967835197,-460.0,0.00017787,2]